bitfinex/quotes_ETHUSD_20251128
["timestamp","ask_amount","ask_price","bid_price","bid_amount"]
[1764350552400,0.4572,3024.3,3023.6,4.03288108]
[1764350552612,0.4531,3023.7,3023.6,4.03288108]
[1764350553010,0.9103,3023.7,3023.6,4.03288108]
[1764350553718,0.9103,3023.7,3023.2,0.213]
[1764350553905,0.4531,3023.3,3023.2,0.75549666]
[1764350554109,0.4531,3023.3,3022.6,3.30835903]
[1764350554110,0.4531,3023.3,3022.7,3.30829181]
[1764350554425,0.4531,3023.0,3022.7,6.61659233]
[1764350554816,0.9103,3023.0,3022.7,6.61659233]
[1764350556019,0.9103,3023.0,3022.7,3.30829181]
[1764350556220,0.9103,3023.0,3022.7,0.72559411]
[1764350557104,0.9103,3023.0,3022.5,0.214]
[1764350557105,1.0103,3023.0,3022.5,0.001]
[1764350557424,1.0103,3023.0,3022.6,0.72559411]
[1764350558331,1.0103,3023.0,3022.7,6.61660104]
[1764350559622,0.9464,3023.0,3022.7,6.61660104]
[1764350559923,0.4531,3023.0,3022.9,0.6627601]
[1764350560135,0.4531,3023.0,3022.9,3.97084174]
[1764350560330,1.0464,3023.0,3022.9,0.001]
[1764350560793,1.0464,3023.0,3022.9,3.30908164]
[1764350561498,0.9464,3023.0,3022.9,3.30908164]
[1764350562235,0.9464,3023.0,3022.9,0.001]
[1764350562736,1.0464,3023.0,3022.9,0.001]
[1764350564010,15.63223021,3023.0,3022.9,0.001]
[1764350564331,3.434465,3023.0,3022.9,0.001]
[1764350564636,3.073629,3023.0,3022.9,0.001]
[1764350564808,1.0464,3023.0,3022.9,0.001]
[1764350565010,4.75987621,3023.0,3022.9,0.001]
[1764350565314,14.87261943,3023.0,3022.9,0.001]
[1764350565635,0.43068062,3022.6,3022.5,0.001]
[1764350565834,1.29768062,3022.6,3022.5,0.001]
[1764350566003,2.09604411,3022.6,3022.5,0.001]
[1764350566207,2.09597955,3022.6,3022.5,0.001]
[1764350566418,5.61398748,3022.6,3022.5,0.001]
[1764350566817,5.30898855,3022.6,3022.5,0.001]
[1764350567220,28.48492655,3022.6,3022.5,0.001]
[1764350567416,0.405504,3022.5,3020.9,6.62047003]
[1764350567636,0.1,3021.7,3021.0,0.72559411]
[1764350567808,0.1,3021.7,3021.1,0.73460641]
[1764350568005,0.1925,3022.0,3021.6,0.0235]
[1764350568452,0.1925,3022.0,3021.7,6.61879074]
[1764350568453,0.6858,3022.0,3021.7,6.61879074]
[1764350568626,0.1925,3022.0,3021.7,6.61879074]
[1764350569550,0.4933,3022.2,3021.7,9.92818611]
[1764350569749,0.1925,3022.6,3021.9,0.0235]
[1764350569947,0.1925,3022.6,3022.1,0.0235]
[1764350570449,0.6858,3022.6,3022.2,6.6176957]
[1764350570645,0.1925,3022.6,3022.2,10.92155566]
[1764350570821,0.4615,3022.3,3022.2,4.30385996]
[1764350571015,0.4933,3022.5,3022.2,7.61270781]
[1764350571215,0.5933,3022.5,3022.2,7.61270781]
[1764350571449,0.4933,3022.5,3021.8,0.213]
[1764350571648,0.4615,3022.3,3021.9,0.72559411]
[1764350572146,0.9548,3022.3,3021.9,0.72559411]
[1764350572341,0.9548,3022.3,3022.0,6.61813368]
[1764350572734,0.6858,3022.6,3022.0,9.92720052]
[1764350572940,0.7858,3022.6,3022.1,1.39619414]
[1764350573733,0.2925,3022.6,3022.1,1.39619414]
[1764350573932,0.4933,3022.5,3022.1,1.39619414]
[1764350574544,0.4933,3022.5,3022.2,6.6176957]
[1764350576429,0.4615,3022.3,3022.1,3.86]
[1764350576623,0.4615,3022.2,3022.1,7.16895734]
[1764350577135,0.9548,3022.2,3022.1,7.16895734]
[1764350577333,0.4615,3022.2,3022.1,7.16895734]
[1764350578655,0.1945,3022.6,3022.1,13.81037202]
[1764350578961,0.1945,3022.6,3022.1,15.26406863]
[1764350579132,0.002,3022.6,3022.1,15.26406863]
[1764350579336,0.4933,3022.5,3022.1,11.93161129]
[1764350580158,0.4933,3022.5,3022.1,7.16895734]
[1764350580159,0.4615,3022.2,3022.1,7.16895734]
[1764350580525,0.4615,3022.2,3021.9,0.001]
[1764350580526,0.9548,3022.2,3021.9,0.001]
[1764350580722,0.5615,3022.0,3021.9,3.31011368]
[1764350581162,1.0548,3022.0,3021.9,3.31011368]
[1764350581381,0.002,3022.6,3021.9,13.79747677]
[1764350581676,0.002,3022.6,3021.9,10.48830043]
[1764350581827,0.5933,3022.5,3021.9,10.48830043]
[1764350582030,0.002,3022.6,3021.9,14.01047677]
[1764350582431,0.002,3022.6,3022.0,4.60909411]
[1764350582760,0.002,3022.6,3022.5,0.0235]
[1764350583252,0.002,3022.6,3022.5,0.047]
[1764350583839,0.002,3022.6,3022.5,4.63259411]
[1764350584074,0.002,3023.0,3022.5,4.63259411]
[1764350584075,0.002,3023.0,3022.5,1.17809811]
[1764350584287,0.4953,3024.7,3023.3,0.72559411]
[1764350584429,0.30632095,3024.6,3023.4,0.98265381]
[1764350584778,0.6736,3024.4,3023.6,0.72559411]
[1764350584990,0.4827,3024.2,3023.6,0.72559411]
[1764350585281,0.4827,3024.2,3023.3,0.213]
[1764350585282,0.4688,3023.7,3023.3,0.213]
[1764350585441,0.4688,3023.7,3022.8,10.65016735]
[1764350585645,0.5827,3023.6,3022.9,0.213]
[1764350585888,0.5827,3023.6,3022.8,12.41227849]
[1764350586102,0.04134281,3023.5,3022.8,10.65016735]
[1764350586275,0.1,3023.3,3022.8,6.61638216]
[1764350586460,0.6569,3022.9,3022.8,3.30819108]
[1764350586785,0.6569,3022.9,3022.5,0.213]
[1764350587000,0.6708,3023.2,3022.5,1.22692151]
[1764350587478,0.4827,3023.6,3022.7,6.970944]
[1764350587663,0.1881,3023.4,3022.7,7.183944]
[1764350588519,0.1881,3023.4,3022.8,0.72559411]
[1764350588682,0.2881,3023.5,3022.9,9.92424492]
[1764350588978,0.1881,3023.5,3022.9,10.71519873]
[1764350589570,0.1881,3023.8,3023.0,4.58559411]
[1764350589766,0.1881,3023.8,3023.1,0.213]
[1764350589979,0.1881,3023.8,3023.2,0.69285941]
[1764350590158,0.1881,3023.8,3023.1,0.213]
[1764350590159,0.52404008,3023.7,3023.1,0.213]
[1764350590351,0.1,3023.5,3023.1,0.213]
[1764350590990,0.5688,3023.2,3022.7,0.72559411]
[1764350591175,0.4688,3023.1,3022.7,0.72559411]
[1764350591480,0.9515,3023.1,3022.7,0.72559411]
[1764350592791,0.04134144,3023.6,3022.9,0.72559411]
[1764350592792,0.1,3023.4,3022.9,0.72559411]
[1764350593304,0.4827,3023.3,3022.6,3.52140736]
[1764350593587,0.1,3023.5,3022.7,0.72559411]
[1764350593787,0.4827,3023.4,3022.7,0.72559411]
[1764350594191,0.1,3023.2,3022.7,0.93859411]
[1764350594554,0.4832,3023.1,3022.7,0.93859411]
[1764350594757,0.4664,3022.8,3021.9,3.31011807]
[1764350594994,0.4832,3023.4,3022.2,0.213]
[1764350595196,0.34724271,3023.3,3022.2,0.93859411]
[1764350595569,0.4832,3023.2,3022.2,0.72559411]
[1764350595912,0.1,3023.1,3022.3,0.212]
[1764350596395,0.5832,3023.1,3022.3,0.212]
[1764350596996,0.5832,3023.1,3022.4,9.9258867]
[1764350599705,0.5832,3023.1,3022.5,0.212]
[1764350600809,0.5832,3023.1,3022.4,6.6172578]
[1764350600810,0.4664,3022.6,3022.4,6.6172578]
[1764350601011,0.4664,3022.5,3022.3,3.3097229]
[1764350601222,0.4832,3023.1,3022.3,9.92719964]
[1764350601507,0.5832,3023.1,3022.4,0.2355]
[1764350602813,0.5832,3023.1,3022.4,0.212]
[1764350603016,0.5832,3023.1,3022.5,9.92555829]
[1764350604879,0.002,3024.3,3023.5,0.0235]
[1764350605074,0.3065723,3024.2,3023.6,6.994444]
[1764350605277,0.002,3024.3,3023.6,6.994444]
[1764350605278,0.002,3024.3,3023.7,0.93759411]
[1764350605903,0.002,3024.3,3024.2,0.0235]
[1764350606106,0.002,3024.3,3024.2,0.2355]
[1764350607112,0.002,3024.3,3024.2,3.54215961]
[1764350607324,0.002,3024.3,3024.2,3.51865961]
[1764350607497,0.002,3024.3,3024.2,4.95264667]
[1764350608085,0.002,3024.3,3024.2,4.71714667]
[1764350608302,0.002,3024.3,3024.2,4.95264667]
[1764350608738,0.002,3024.3,3024.2,1.41048706]
[1764350608893,0.002,3024.3,3024.2,4.24425372]
[1764350609392,0.002,3024.3,3024.2,11.23869772]
[1764350609621,0.002,3024.3,3024.2,11.26219772]
[1764350609820,0.002,3024.7,3024.4,0.0235]
[1764350610009,0.002,3024.7,3024.6,0.0235]
[1764350610221,0.002,3024.7,3024.6,0.2355]
[1764350610409,0.002,3024.7,3024.6,0.259]
[1764350611398,0.002,3024.7,3024.6,4.26731642]
[1764350611740,0.002,3024.7,3024.6,4.81267272]
[1764350611937,0.002,3024.7,3024.6,5.02467272]
[1764350612298,0.002,3024.7,3024.6,5.00117272]
[1764350613433,0.002,3024.7,3024.6,4.78917272]
[1764350613635,0.002,3024.7,3024.6,5.00117272]
[1764350614517,0.002,3024.7,3024.6,4.78917272]
[1764350614698,0.002,3024.7,3024.6,5.00117272]
[1764350614905,0.002,3024.7,3024.6,5.02467272]
[1764350615131,0.002,3024.7,3024.6,5.00117272]
[1764350615332,0.002,3024.7,3024.6,8.86117272]
[1764350616836,0.002,3024.7,3024.6,8.64917272]
[1764350617238,0.9676,3024.7,3024.6,4.24381642]
[1764350617410,0.9676,3024.7,3024.6,0.93759411]
[1764350617609,0.9676,3024.7,3023.7,9.9216192]
[1764350617933,0.9676,3024.7,3023.8,0.212]
[1764350618135,0.9676,3024.7,3023.8,0.93759411]
[1764350618348,0.4777,3024.7,3023.9,1.78043248]
[1764350619009,0.002,3024.7,3023.9,1.80393248]
[1764350619421,0.002,3024.7,3024.1,0.72559411]
[1764350619622,0.002,3024.7,3024.2,0.24506659]
[1764350619822,0.002,3024.7,3024.2,0.212]
[1764350620022,0.002,3024.7,3024.3,0.0330655]
[1764350620408,0.002,3024.7,3024.1,0.72559411]
[1764350620409,0.4757,3024.4,3024.1,0.72559411]
[1764350620610,0.4919,3024.7,3024.2,0.03306659]
[1764350620843,0.4919,3024.7,3024.3,0.212]
[1764350621216,0.002,3024.7,3024.4,0.0330644]
[1764350621422,0.002,3024.7,3024.5,6.61266324]
[1764350621747,0.002,3024.7,3024.6,0.03306222]
[1764350622112,0.4777,3024.7,3024.6,0.03306222]
[1764350622364,0.9676,3024.7,3024.6,0.03306222]
[1764350622738,0.4777,3024.7,3024.5,6.61266324]
[1764350623045,0.4777,3024.7,3024.6,0.212]
[1764350623241,0.002,3024.7,3024.6,0.99415633]
[1764350623446,0.002,3024.7,3024.6,4.27687864]
[1764350624629,0.002,3024.7,3024.6,4.06487864]
[1764350624842,0.4777,3024.7,3024.6,4.24381642]
[1764350625030,0.002,3024.7,3024.6,5.09640857]
[1764350625458,1.502,3024.7,3024.6,5.09640857]
[1764350626654,1.502,3024.7,3024.6,5.03984635]
[1764350627426,1.502,3024.7,3024.1,6.65478828]
[1764350627623,1.502,3024.7,3024.3,3.30651569]
[1764350627828,1.502,3024.7,3024.4,0.0330644]
[1764350628747,0.4757,3024.5,3024.3,0.72559411]
[1764350629045,0.4757,3024.4,3024.3,0.72559411]
[1764350629250,0.4899,3024.6,3024.3,2.66763832]
[1764350629450,1.502,3024.7,3024.4,6.61288188]
[1764350629829,1.9919,3024.7,3024.4,6.61288188]
[1764350630041,1.502,3024.7,3024.4,6.61288188]
[1764350630236,0.4899,3024.6,3024.4,6.61288188]
[1764350630661,0.4757,3024.5,3024.4,3.30644094]
[1764350630851,0.4757,3024.5,3024.4,3.51844094]
[1764350631331,0.4757,3024.5,3024.4,3.55150534]
[1764350632650,0.4757,3024.5,3024.4,3.51844094]
[1764350633760,0.9656,3024.5,3024.4,3.51844094]
[1764350633964,0.9656,3024.5,3024.4,0.212]
[1764350634141,0.9656,3024.5,3024.3,6.82506596]
[1764350634339,0.9656,3024.4,3024.3,4.2441098]
[1764350634571,0.9656,3024.4,3024.3,4.0321098]
[1764350634788,0.9656,3024.4,3024.1,3.30676895]
[1764350635067,0.4757,3024.2,3024.1,3.30676895]
[1764350635259,0.78267216,3024.2,3024.1,3.30676895]
[1764350635567,1.27257216,3024.2,3024.1,3.30676895]
[1764350636068,1.2725823,3024.2,3024.1,3.30676895]
[1764350636234,0.3069823,3024.2,3024.1,4.18023285]
[1764350636553,1.2725823,3024.2,3024.1,3.30676895]
[1764350637887,1.502,3024.7,3024.1,13.28364348]
[1764350638165,1.502,3024.7,3024.6,0.0235]
[1764350638369,1.502,3024.7,3024.6,3.57478453]
[1764350638554,0.002,3024.7,3024.6,4.22983341]
[1764350638756,0.002,3024.7,3024.6,4.26289563]
[1764350639367,0.4919,3025.2,3024.7,1.13109811]
[1764350639368,0.002,3025.2,3024.7,1.13109811]
[1764350639568,0.004,3025.7,3025.3,0.0235]
[1764350639869,0.004,3025.7,3025.5,7.40388239]
[1764350640065,0.004,3025.7,3025.5,8.16782063]
[1764350640289,0.004,3025.7,3025.5,11.49655943]
[1764350640846,0.002,3025.9,3025.7,0.0235]
[1764350641148,0.002,3025.9,3025.8,0.641004]
[1764350641538,0.002,3025.9,3025.8,0.664504]
[1764350641767,0.002,3025.9,3025.8,0.0235]
[1764350641967,0.002,3025.9,3025.8,0.2355]
[1764350642282,0.002,3025.9,3025.8,4.6950092]
[1764350642489,0.002,3025.9,3025.8,5.60812226]
[1764350644586,0.002,3025.9,3025.8,5.58462226]
[1764350645868,0.002,3025.9,3025.8,5.60812226]
[1764350646261,0.002,3025.9,3025.8,5.39612226]
[1764350646463,0.002,3025.9,3025.8,5.60812226]
[1764350646661,0.002,3025.9,3025.8,5.39612226]
[1764350646854,1.502,3025.9,3025.8,5.58462226]
[1764350647051,1.502,3025.9,3025.8,0.93661306]
[1764350647257,1.502,3025.9,3025.8,4.2660052]
[1764350648057,1.502,3025.9,3025.8,4.6715092]
[1764350648760,1.502,3025.9,3025.8,4.4595092]
[1764350649075,1.502,3025.9,3025.8,4.2660052]
[1764350649578,1.502,3025.9,3025.8,4.29905431]
[1764350649774,1.502,3025.9,3025.8,5.05946174]
[1764350649976,1.502,3025.9,3025.8,1.51905065]
[1764350650167,2.665,3025.9,3025.8,3.30491109]
[1764350650365,2.765,3025.9,3024.8,3.30596709]
[1764350650570,1.3512,3025.8,3024.9,0.212]
[1764350650770,1.3512,3025.8,3024.7,6.612226]
[1764350650943,0.1,3025.6,3024.8,0.212]
[1764350651274,0.1,3025.6,3024.8,0.93759411]
[1764350651477,0.484,3025.5,3024.8,0.93759411]
[1764350652366,0.484,3025.5,3024.9,6.6117888]
[1764350652564,0.584,3025.5,3025.0,0.24505785]
[1764350652766,0.484,3025.5,3025.0,0.24505785]
[1764350653168,0.484,3025.5,3025.4,0.001]
[1764350653553,0.9745,3025.5,3025.4,0.001]
[1764350654464,0.9745,3025.5,3025.4,3.30634805]
[1764350654660,0.9745,3025.5,3025.4,0.001]
[1764350654866,1.0745,3025.5,3025.4,0.001]
[1764350655567,0.9745,3025.5,3025.4,3.30634805]
[1764350656485,1.0745,3025.5,3025.4,0.001]
[1764350656654,1.37959049,3025.5,3025.4,0.001]
[1764350657056,1.0745,3025.5,3025.4,0.001]
[1764350657756,8.1992741,3025.5,3025.4,0.001]
[1764350658072,4.45607794,3025.5,3025.4,0.001]
[1764350658873,7.76131674,3025.5,3025.4,0.001]
[1764350659090,4.45607794,3025.5,3025.4,0.001]
[1764350659268,7.76131674,3025.5,3025.4,0.001]
[1764350659583,4.68481674,3025.5,3025.4,0.001]
[1764350659991,17.55166474,3025.5,3025.4,0.001]
[1764350660680,17.76366474,3025.5,3025.4,0.001]
[1764350661499,20.79443674,3025.5,3025.4,0.001]
[1764350661900,21.12511736,3025.5,3025.4,0.001]
[1764350662199,32.45446936,3025.5,3025.4,0.001]
[1764350662971,33.78276436,3025.5,3025.4,0.001]
[1764350663295,0.43068062,3025.2,3025.1,0.001]
[1764350663495,30.90759156,3025.2,3025.1,0.001]
[1764350663698,8.79013156,3025.2,3025.1,0.001]
[1764350664003,8.08404809,3025.2,3025.1,0.001]
[1764350664300,5.98029709,3025.2,3025.1,0.001]
[1764350664668,5.98019504,3025.2,3025.1,0.001]
[1764350664865,9.28576161,3025.2,3025.1,0.001]
[1764350665080,14.55999861,3025.2,3025.1,0.001]
[1764350666105,15.93340561,3025.2,3025.1,0.001]
[1764350668185,15.74040561,3025.2,3025.1,0.001]
[1764350668404,14.22248361,3025.2,3025.1,0.001]
[1764350668614,4.24003804,3025.2,3025.1,0.001]
[1764350668787,7.58692419,3025.2,3025.1,0.001]
[1764350668983,4.56391769,3025.2,3025.1,0.001]
[1764350669194,2.13396269,3025.2,3025.1,0.001]
[1764350669398,9.15721184,3025.2,3025.1,0.001]
[1764350669600,9.11589226,3025.2,3025.1,0.001]
[1764350669892,2.03396269,3025.2,3025.1,0.001]
[1764350670098,1.37940242,3025.2,3025.1,0.001]
[1764350670610,1.420722,3025.2,3025.1,0.001]
[1764350671997,0.925122,3025.2,3025.1,0.001]
[1764350672506,1.420722,3025.2,3025.1,0.001]
[1764350672680,1.0744,3025.2,3025.1,0.001]
[1764350672881,0.1905,3025.9,3025.1,0.0245]
[1764350673081,0.04331138,3025.8,3025.2,0.0235]
[1764350674100,0.1,3025.6,3025.1,0.001]
[1764350674415,0.40551877,3025.6,3025.1,0.001]
[1764350674710,0.90111877,3025.6,3025.1,0.001]
[1764350674885,0.5956,3025.6,3025.1,0.001]
[1764350675306,0.3056373,3025.5,3025.1,0.001]
[1764350675809,0.4772,3025.4,3025.1,0.001]
[1764350676114,0.1,3025.3,3025.1,0.001]
[1764350676312,0.4772,3025.7,3025.1,0.001]
[1764350676510,0.1,3025.4,3025.1,0.001]
[1764350676813,0.1,3025.5,3025.1,0.001]
[1764350677184,0.40589707,3025.5,3025.1,0.001]
[1764350677386,0.88309707,3025.5,3025.1,0.001]
[1764350677612,0.30589707,3025.4,3025.1,0.001]
[1764350678113,0.495,3025.2,3025.1,0.001]
[1764350678316,0.80129414,3025.2,3025.1,0.001]
[1764350678488,0.80129413,3025.2,3025.1,0.001]
[1764350679095,1.37849413,3025.2,3025.1,0.001]
[1764350679296,0.30654847,3025.2,3025.1,0.001]
[1764350679495,0.34786395,3025.5,3025.1,0.001]
[1764350679695,0.30654847,3025.4,3025.1,0.001]
[1764350679892,0.30654847,3025.3,3025.1,0.001]
[1764350680090,0.30654847,3025.4,3025.1,0.001]
[1764350680291,0.34786668,3025.3,3025.1,0.001]
[1764350680490,0.4772,3025.6,3025.1,0.001]
[1764350680491,0.30654847,3025.5,3025.1,0.001]
[1764350680691,0.30654847,3025.4,3025.2,0.0235]
[1764350680908,0.52051138,3025.8,3025.1,0.74254413]
[1764350681134,0.52051138,3025.8,3025.1,6.61235168]
[1764350681135,0.40684298,3025.7,3025.1,6.61235168]
[1764350681423,0.34815709,3025.6,3025.1,6.61235168]
[1764350681718,0.34815709,3025.6,3025.1,3.30667584]
[1764350681719,0.30684298,3025.5,3025.1,3.30667584]
[1764350682022,0.40684298,3025.4,3025.1,6.61235168]
[1764350682209,0.30684298,3025.3,3025.2,0.66133517]
[1764350682626,0.4772,3025.5,3025.2,0.66133517]
[1764350682627,0.30684298,3025.4,3025.2,0.66133517]
[1764350682837,0.30684298,3025.3,3025.2,0.66133517]
[1764350683007,0.30684298,3025.4,3025.2,0.66133517]
[1764350683209,0.30684298,3025.3,3025.1,3.861]
[1764350683429,0.30684298,3025.4,3025.1,3.861]
[1764350683644,0.495,3025.2,3025.1,0.001]
[1764350683937,0.30684298,3025.2,3025.1,0.001]
[1764350684912,0.30684298,3025.4,3025.1,0.0245]
[1764350685210,0.4772,3025.5,3025.1,0.0245]
[1764350685211,0.30684298,3025.3,3025.1,0.0245]
[1764350685411,0.4772,3025.5,3025.1,0.0245]
[1764350685623,0.3068222,3025.4,3025.1,0.0245]
[1764350685811,0.3068222,3025.3,3025.1,0.0245]
[1764350686012,0.3068222,3025.2,3025.1,3.33017584]
[1764350686246,0.3068222,3025.4,3025.1,6.63585168]
[1764350686412,0.3068222,3025.3,3025.1,6.63585168]
[1764350686734,0.3068222,3025.2,3025.1,3.33017584]
[1764350686937,0.3068222,3025.4,3025.1,6.63585168]
[1764350687239,0.495,3025.2,3025.1,0.001]
[1764350687544,1.3166858,3025.2,3025.1,0.001]
[1764350687707,1.7938858,3025.2,3025.1,0.001]
[1764350687907,1.3790222,3025.2,3025.1,0.001]
[1764350688336,0.9018222,3025.2,3025.1,0.001]
[1764350688537,0.3068222,3025.2,3025.1,0.0245]
[1764350688941,0.3068222,3025.2,3025.1,0.05755675]
[1764350689539,0.3068222,3025.2,3025.1,3.36323259]
[1764350689838,0.3068222,3025.2,3025.1,3.33017584]
[1764350690618,0.3068222,3025.2,3025.1,0.001]
[1764350690925,0.3068222,3025.2,3025.1,3.33017584]
[1764350691709,0.3068222,3025.2,3025.1,0.001]
[1764350691912,0.8018222,3025.2,3025.1,0.001]
[1764350692836,0.3068222,3025.2,3025.1,0.001]
[1764350693545,0.3068222,3025.2,3025.1,0.0245]
[1764350693741,0.3068222,3025.2,3025.1,3.33017584]
[1764350694716,0.3068222,3025.2,3025.1,3.30667584]
[1764350695329,0.3068222,3025.2,3025.0,7.16678179]
[1764350695533,0.3068222,3025.1,3025.0,7.16678179]
[1764350695944,0.3068222,3025.1,3025.0,7.19028179]
[1764350696247,0.3068222,3025.1,3025.0,8.23989848]
[1764350696427,0.3068222,3025.4,3025.0,14.87496872]
[1764350696627,0.3068222,3025.3,3025.1,0.24505675]
[1764350696942,0.3068222,3025.2,3025.1,0.212]
[1764350697460,0.3068222,3025.2,3025.1,0.2355]
[1764350697618,0.3068222,3025.2,3025.1,2.10963121]
[1764350698245,0.3068222,3025.2,3025.1,5.41530705]
[1764350698441,0.3068222,3025.2,3025.0,8.42839764]
[1764350698648,0.62051411,3025.6,3025.1,0.05655675]
[1764350698923,0.30701572,3025.5,3025.1,0.05655675]
[1764350699243,0.30701572,3025.4,3025.1,0.05655675]
[1764350699421,0.30701572,3025.3,3025.2,3.86]
[1764350699853,0.30701572,3025.3,3025.2,3.8835]
[1764350700568,0.30701572,3025.3,3025.2,7.18906657]
[1764350701336,0.30701572,3025.3,3025.2,3.86]
[1764350701651,0.30701572,3025.3,3025.2,7.16556657]
[1764350702751,0.80201572,3025.3,3025.2,7.16556657]
[1764350703128,0.80201572,3025.3,3025.2,3.30556657]
[1764350703758,0.30701572,3025.3,3025.2,3.30556657]
[1764350704426,0.80201572,3025.3,3025.2,3.30556657]
[1764350704660,1.27921572,3025.3,3025.1,3.86]
[1764350704835,1.27921572,3025.2,3025.1,7.16565857]
[1764350705367,1.27921572,3025.2,3025.0,3.3067776]
[1764350705368,1.27921572,3025.2,3025.0,3.30678237]
[1764350705524,1.23831572,3025.1,3025.0,3.30678237]
[1764350706426,0.76721572,3025.1,3025.0,3.30678237]
[1764350706735,0.30701572,3025.1,3025.0,8.4478189]
[1764350707436,0.30701572,3025.1,3025.0,8.4243189]
[1764350708028,0.76721572,3025.1,3025.0,0.001]
[1764350708336,0.76721572,3025.1,3025.0,3.30678512]
[1764350709387,0.30701572,3025.1,3025.0,5.25570588]
[1764350709698,0.002,3025.6,3025.0,5.25570588]
[1764350709699,0.002,3025.6,3025.3,0.0235]
[1764350710012,0.002,3026.3,3026.0,0.0215]
[1764350710139,0.002,3026.3,3026.1,6.07663064]
[1764350710341,0.002,3026.3,3026.1,6.6864437]
[1764350710568,0.002,3026.3,3026.1,8.54188026]
[1764350710769,0.002,3026.3,3026.1,12.25196771]
[1764350711442,0.002,3026.3,3026.2,1.13109811]
[1764350711696,0.002,3026.3,3026.2,2.72975335]
[1764350712681,0.002,3026.3,3026.2,6.0342276]
[1764350712888,0.002,3026.9,3026.4,0.0215]
[1764350713062,0.002,3027.3,3026.9,0.405504]
[1764350713389,0.002,3027.3,3027.2,0.0215]
[1764350713878,0.002,3027.3,3027.2,0.043]
[1764350714284,0.002,3027.3,3027.2,0.0215]
[1764350714486,0.002,3027.3,3027.2,0.255]
[1764350714702,0.90699411,3029.0,3027.4,1.13109811]
[1764350714703,0.1814,3028.5,3027.4,1.13109811]
[1764350714980,0.4711,3028.7,3028.1,0.0215]
[1764350715294,0.4602,3028.2,3027.9,0.212]
[1764350715593,0.4602,3028.0,3027.9,0.212]
[1764350715961,0.9313,3028.0,3027.9,0.212]
[1764350716599,0.9313,3028.0,3027.4,0.72559411]
[1764350716776,0.6525,3027.9,3027.5,3.30305532]
[1764350716943,0.6525,3027.9,3027.5,6.60611064]
[1764350717393,0.1814,3027.9,3027.5,6.60611064]
[1764350717558,0.4711,3027.8,3027.4,6.81830167]
[1764350717763,0.4602,3027.5,3027.1,3.30346068]
[1764350718086,0.4711,3028.0,3027.0,7.16347309]
[1764350718296,0.1814,3028.1,3027.4,0.0215]
[1764350718584,0.1814,3028.1,3027.5,0.212]
[1764350718758,0.1814,3028.1,3027.6,6.60589244]
[1764350719147,0.6525,3028.1,3027.6,6.60589244]
[1764350719663,0.6525,3028.1,3027.7,3.86]
[1764350719848,0.4711,3028.4,3027.7,3.86]
[1764350720053,3.81449022,3028.4,3027.8,3.86]
[1764350720402,0.48144902,3028.3,3027.8,3.86]
[1764350720695,0.5711,3028.3,3027.8,3.86]
[1764350720872,0.5711,3028.3,3028.0,3.3025099]
[1764350721198,0.4805,3028.1,3028.0,3.3025099]
[1764350721692,1.0687,3028.1,3028.0,3.3025099]
[1764350722001,1.0687,3028.1,3027.9,3.86]
[1764350722002,0.9687,3028.1,3027.9,3.86]
[1764350722158,3.30220793,3028.3,3027.9,3.86]
[1764350722159,1.10998137,3028.0,3027.9,3.86]
[1764350723302,1.0687,3028.0,3027.9,3.86]
[1764350730696,4.3712099,3028.0,3027.9,3.86]
[1764350730867,0.9687,3028.0,3027.9,3.86]
[1764350731066,0.9687,3028.0,3027.9,7.16261897]
[1764350731904,0.212,3028.3,3027.9,10.46523794]
[1764350732083,0.04127864,3028.2,3027.9,10.46523794]
[1764350732286,0.52947864,3028.2,3027.9,10.46523794]
[1764350733019,0.002,3028.4,3027.9,10.46523794]
[1764350733212,0.002,3028.4,3028.3,0.0215]
[1764350733498,0.002,3028.4,3028.3,4.26127685]
[1764350733684,0.002,3028.4,3028.3,4.28277685]
[1764350734087,0.002,3028.4,3028.3,4.68828085]
[1764350734671,0.002,3028.4,3028.3,4.26127685]
[1764350734990,0.002,3028.4,3028.3,5.01763337]
[1764350735419,0.002,3028.4,3028.3,4.26127685]
[1764350736003,0.002,3028.4,3028.3,4.04927685]
[1764350736196,0.002,3028.4,3028.3,4.26127685]
[1764350736397,0.002,3028.4,3028.3,4.02777685]
[1764350736584,0.002,3028.4,3028.3,3.51418274]
[1764350736785,0.002,3028.4,3027.4,0.0215]
[1764350736786,0.9614,3028.4,3027.4,0.0215]
[1764350737109,0.9614,3028.4,3027.1,3.86]
[1764350737110,0.1,3028.2,3027.3,6.60654708]
[1764350737310,1.10067728,3028.3,3027.6,6.60589244]
[1764350737480,0.60927728,3028.3,3027.7,0.72559411]
[1764350737680,0.30593521,3028.2,3027.7,0.212]
[1764350737885,0.30593521,3028.3,3027.8,0.03302728]
[1764350738115,0.30593521,3028.3,3027.8,0.212]
[1764350738320,0.30593521,3028.2,3027.9,0.03302618]
[1764350738515,0.30593521,3028.1,3027.6,0.212]
[1764350738721,0.6859,3027.9,3027.7,0.03302837]
[1764350739080,0.47,3028.4,3027.8,0.0215]
[1764350739289,0.47,3028.4,3027.9,0.03302618]
[1764350739290,0.30643969,3028.3,3027.9,0.03302618]
[1764350739612,0.30643969,3028.2,3028.0,6.6050198]
[1764350739922,0.30703334,3028.1,3028.0,3.33553499]
[1764350741026,0.30703334,3028.1,3028.0,7.19553499]
[1764350741198,0.30703334,3028.1,3028.0,7.1625099]
[1764350741710,1.26643334,3028.1,3028.0,3.86]
[1764350741925,0.30703334,3028.1,3028.0,7.1625099]
[1764350744133,0.30703334,3028.1,3028.0,7.1840099]
[1764350744429,0.30703334,3028.1,3028.0,8.25387239]
[1764350744924,0.002,3028.4,3028.0,14.88039219]